Cogmind - Beta 14 --- EXPLORER MODE // 2024.09.12 @ 12:51:36 Player: mrjoebobfred Result: Destroyed by H-66 Slayer with Gauss Rifle Performance ------------- Evolutions (5) 2500 Regions Visited (14) 2800 Robots Destroyed (234) 1170 Value Destroyed (11179) 11179 Prototype IDs (38) 760 Alien Tech Used (0) 0 Bonus (15507) 15507 TOTAL SCORE: 33916 Bonus ------- No Salvage 9690 High Alert Combat Kills 1552 Follower Combat Kills 1565 Entered Garrisons 400 Used RIF Installer 500 Network Hubs Disabled 800 Registered with UFD 300 Built Enhanced Grunts 300 Met R17 at Cetus 500 Friendly Fire -100 Cogmind --------- Core Integrity 0/1000 Matter 174/300 Energy 98/100 System Corruption 0% Temperature Warm (102) Movement Core (50) Location -5/Garrison Parts ------- > --- POWER (2) -------- (None) > --- PROPULSION (4) --- (None) > --- UTILITY (9) ------ (None) > --- WEAPON (3) ------- (None) > --- INVENTORY (5) ---- Scrap Suit EM Disruption Field Improved System Shield Relay Coupler [Proto] (14) Peak State ------------ > --- POWER ------------ Neutrino Core Particle Reactor > --- PROPULSION ------- Heavy Treads Heavy Treads > --- UTILITY ---------- Scrap Suit Advanced Heat Sink Large Storage Unit Experimental Sensor Array Layered Heavy Armor Plating Improved Focal Shield Thermal Shield > --- WEAPON ----------- Overtuned Coil Gun Overtuned Coil Gun Overtuned Railgun > --- INVENTORY -------- Improved Medium Treads Scrap Suit Structural Scanner Improved Weapon Cycler Improved Focal Shield EM Disruption Field Remote Force Field Relay Coupler [NC] Relay Coupler [NC] Improved System Restoration Module Improved System Restoration Module Long-range Missile Launcher Plasma Cutter DRS Beacon [Rating: 110] Favorites ----------- Power Neutrino Core Engine Angular Momentum Engine Power Core Neutrino Core Reactor Particle Reactor Propulsion Improved Treads Treads Improved Treads Utility Large Storage Unit Device Structural Scanner Storage Large Storage Unit Processor Advanced Signal Interpreter Hackware Hacking Suite Protection Medium Armor Plating Weapon Overtuned Coil Gun Energy Gun Pulse Rifle Energy Cannon Heavy Particle Cannon Ballistic Gun Overtuned Coil Gun Launcher Rocket Launcher Special Weapon Improved Remote Datajack Impact Weapon Powered Hammer Piercing Weapon Spear Special Melee Weapon Datajack Build | -11 -10 -10 -9 -9 -9 -9 -6 -6 -5 -5 -5 -5 -5 -5 ------- Run | Yrd Mat Min Mat Sto Rec Scr Fac Gar Fac Ext Cet Arc Hub Gar Slots Evolved 11 | . 1 . 2 . . . 6 . 2 . . . . . Power 1 | . . . . . . . 1 . . . . . . . Propulsion 2 | . . . 1 . . . 1 . . . . . . . Utility 7 | . 1 . 1 . . . 4 . 1 . . . . . Weapon 1 | . . . . . . . . . 1 . . . . . Parts Attached 119 | 7 2 6 14 8 1 4 5 5 11 5 4 . 30 17 Power 11 | 1 . 1 . . . 1 1 1 1 . . . 2 3 Engine 4 | 1 . 1 . . . 1 1 . . . . . . . Core 2 | . . . . . . . . . 1 . . . 1 . Reactor 5 | . . . . . . . . 1 . . . . 1 3 Propulsion 18 | 2 . . 3 3 . . 1 1 2 3 . . 2 1 Treads 18 | 2 . . 3 3 . . 1 1 2 3 . . 2 1 Leg . | . . . . . . . . . . . . . . . Wheel . | . . . . . . . . . . . . . . . Hover . | . . . . . . . . . . . . . . . Flight . | . . . . . . . . . . . . . . . Utility 50 | 2 2 1 5 1 . . 3 3 7 2 2 . 15 7 Device 36 | . 1 . 3 . . . 2 2 5 2 2 . 12 7 Storage 2 | 1 1 . . . . . . . . . . . . . Processor 3 | . . . 1 . . . . . 1 . . . 1 . Hackware 3 | . . . . . . . 1 . . . . . 2 . Protection 6 | 1 . 1 1 1 . . . 1 1 . . . . . Artifact . | . . . . . . . . . . . . . . . Weapon 40 | 2 . 4 6 4 1 3 . . 1 . 2 . 11 6 Energy Gun 6 | . . . 3 . . . . . . . . . . 3 Energy Cannon 3 | . . 2 . . . . . . . . . . . 1 Ballistic Gun 17 | 2 . 2 2 2 . 3 . . 1 . 1 . 3 1 Ballistic Cannon . | . . . . . . . . . . . . . . . Launcher 1 | . . . 1 . . . . . . . . . . . Special Weapon 9 | . . . . 1 . . . . . . 1 . 7 . Impact Weapon 1 | . . . . . . . . . . . . . 1 . Slashing Weapon . | . . . . . . . . . . . . . . . Piercing Weapon 1 | . . . . . . . . . . . . . . 1 Special Melee Weapon 2 | . . . . 1 1 . . . . . . . . . Unidentified Prototypes 2 | . . . . . . . . . . . . . 2 . Parts Lost 30 | . . . 1 . . . . 1 4 . . . 8 16 Power 4 | . . . . . . . . . . . . . 1 3 Propulsion 3 | . . . . . . . . . . . . . . 3 Utility 15 | . . . 1 . . . . 1 4 . . . 3 6 Weapon 8 | . . . . . . . . . . . . . 4 4 Highest Loss Streak 10 | . . . 1 . . . . 1 1 . . . 3 10 To Critical Strikes . | . . . . . . . . . . . . . . . Average Slot Usage (%) 90 | . 100 100 98 100 100 100 87 92 84 83 83 83 76 63 Engine 6 | . 12 12 10 10 10 10 11 11 . . . . . . Core 2 | . . . . . . . . . 4 5 5 5 6 3 Reactor 1 | . . . . . . . . . 5 5 5 5 3 4 Treads 21 | . 25 25 29 30 30 30 24 25 16 16 16 16 11 7 Device 18 | . 12 12 15 10 10 10 16 18 23 27 27 27 24 24 Storage 7 | . 12 12 10 10 10 10 6 6 5 5 5 5 5 3 Hackware 1 | . . . . . . . 3 6 4 . . . 4 1 Protection 10 | . 12 12 10 19 20 20 12 11 4 5 5 5 2 . Energy Gun 1 | . . . 12 . . . . . . . . . . 2 Ballistic Gun 12 | . 25 13 7 17 19 10 12 12 14 16 15 16 5 3 Special Weapon 1 | . . . . 2 . . . . . . . . 6 3 Special Melee Weapon 1 | . . . . . . 9 . . . . . . . . Peak Build Rating 110 | 7 8 14 25 23 23 35 60 64 98 108 109 108 110 107 Average Rating 57 | 5 8 13 22 22 22 26 56 63 86 104 108 108 92 77 On Entrance 50 | . 7 8 14 22 23 21 35 60 63 98 108 108 108 88 Naked Turns 16 | . . . . . . . . . . . . . . 16 Heaviest Build 104 | 22 33 45 44 50 50 58 76 81 97 97 104 97 97 75 Greatest Support 140 | 40 40 40 66 69 69 69 97 97 121 130 130 130 140 140 Greatest Overweight (x) 19 | 1 . 1 . . . . 1 . 1 1 . . . 19 Average Overweight (x) . | . . . . . . . . . . . . . . . Largest Inventory Capacity 15 | 10 15 15 15 15 15 15 15 15 15 15 15 15 15 15 Average Capacity 14 | 8 14 15 15 15 15 15 15 15 15 15 15 15 15 12 Most Carried 15 | 1 3 11 14 13 10 15 15 15 15 15 15 15 15 15 Average Carried 11 | . . 8 12 9 10 13 13 14 12 12 15 15 13 11 Final Capacity 15 | 10 15 15 15 15 15 15 15 15 15 15 15 15 15 5 Final Carried 15 | 1 3 11 13 10 10 15 14 15 11 15 15 15 15 5 Class Distribution -------------------- 67% | Hacker-Mutant 15% | Hacker-Tank 6% | Hacker-Skirmisher 6% | Commander-Tank 4% | Commander-Mutant Dominant Class ---------------- Hacker-Mutant | -10/Materials Hacker-Mutant | -10/Mines Hacker-Mutant | -9/Materials Hacker-Mutant | -9/Storage Hacker-Mutant | -9/Recycling Hacker-Mutant | -9/Scraptown Hacker-Mutant | -6/Factory Hacker-Mutant | -6/Garrison Hacker-Skirmisher | -5/Factory Hacker-Tank | -5/Extension Hacker-Tank | -5/Cetus Commander-Tank | -5/Archives Hacker-Mutant | -5/Hub_04(d) Hacker-Mutant | -5/Garrison Resources | -11 -10 -10 -9 -9 -9 -9 -6 -6 -5 -5 -5 -5 -5 -5 ----------- Run | Yrd Mat Min Mat Sto Rec Scr Fac Gar Fac Ext Cet Arc Hub Gar Matter Collected 5261 | 249 195 216 293 246 40 30 28 674 796 1095 181 121 952 145 Remotely . | . . . . . . . . . . . . . . . Salvage Created 10823 | 82 531 126 1043 572 173 . 171 1031 1793 2936 233 165 1567 400 Parts . | . . . . . . . . . . . . . . . Haulers Intercepted 10 | . 1 . 5 2 . . . . 1 1 . . . . Recyclers Shooed . | . . . . . . . . . . . . . . . Parts Field Recycled . | . . . . . . . . . . . . . . . Retrieved Matter . | . . . . . . . . . . . . . . . Parts Self-Destructed . | . . . . . . . . . . . . . . . Prevented . | . . . . . . . . . . . . . . . Kills | -11 -10 -10 -9 -9 -9 -9 -6 -6 -5 -5 -5 -5 -5 -5 ------- Run | Yrd Mat Min Mat Sto Rec Scr Fac Gar Fac Ext Cet Arc Hub Gar Combat Hostiles Destroyed 185 | . 14 5 23 10 3 . 4 22 33 32 3 2 22 12 Melee 4 | . . . . . . . . . . . . . 3 1 Guns 155 | . 14 2 17 10 3 . 4 22 27 32 3 2 10 9 Cannons 3 | . . 3 . . . . . . . . . . . . AOE 11 | . . . 5 . . . . . 6 . . . . . Classes Destroyed 19 | 1 5 1 4 . 1 . . 2 1 3 . . . 1 Worker 7 | . 1 . 1 1 . . . . 4 . . . . . Builder 7 | . . . 1 . . . . . 1 5 . . . . Tunneler 2 | . . . . . . . . . 1 . . . 1 . Hauler 10 | . 1 . 5 2 . . . . 1 1 . . . . Recycler 5 | 1 . . . . . . . . 1 3 . . . . Mechanic 2 | . . . . . . . . . . 2 . . . . Operator 3 | . . . 1 1 . . . . . 1 . . . . Watcher 16 | . 2 . 5 2 . . 1 . 2 3 1 . . . Swarmer 50 | . 6 . 6 2 . . 3 8 15 3 . . . 7 Cutter 2 | . . . . . . . . . . . . . . 2 Grunt 60 | . 8 2 9 5 . . . 6 8 15 . . 6 1 Brawler 3 | . . . 1 . . . . . 1 1 . . . . Duelist 3 | . . . . . . . . 1 . 2 . . . . Protector 1 | . . . . . . . . . . 1 . . . . Sentry 30 | . . . 7 3 2 . 1 4 1 6 . 2 4 . Hunter 11 | . . . . . 1 . . . 5 2 . . 1 2 Programmer 7 | . . . . . . . . 3 3 . . . 1 . Behemoth 2 | . . . . . . . . . . 2 . . . . Cetus Guard 3 | . . . . . . . . . . . 3 . . . Lightning 10 | . . . . . . . . . . . . . 10 . Assembled 3 | . . 3 . . . . . . . . . . . . Best Kill Streak 13 | 1 9 2 9 3 1 . 2 5 8 13 2 2 5 8 Combat Bots Only 8 | . 8 2 6 3 1 . 2 5 7 8 2 2 5 8 Max Kills in Single Turn 7 | 1 2 1 7 2 1 . 1 2 6 3 1 1 1 1 Gunslinging 1 | . 1 . 1 1 . . . 1 1 1 . . . . Exploded 5 | . . . 5 . . . . . 3 . . . . . Melee 1 | . . . . . . . . . . . . . 1 1 Uniques/NPCs Destroyed . | . . . . . . . . . . . . . . . Combat | -11 -10 -10 -9 -9 -9 -9 -6 -6 -5 -5 -5 -5 -5 -5 -------- Run | Yrd Mat Min Mat Sto Rec Scr Fac Gar Fac Ext Cet Arc Hub Gar Hostile Shots Fired 1033 | . 45 17 86 34 4 . 32 101 73 78 7 3 247 306 Missed 271 | . 12 7 26 10 1 . 10 34 21 19 2 . 68 61 Damage Taken 7966 | . 206 78 512 175 32 . 138 596 545 531 33 42 2442 2636 Core 1170 | . 24 17 44 6 . . 5 74 24 18 5 . 233 720 Absorbed by Shields 344 | . . . . . . . . . . 56 29 . 57 202 Reduced by Siege Mode 148 | . . . . . . . . . 7 2 . . 24 115 Ignored by Resistances 7550 | . 140 48 327 113 20 . 116 506 611 773 99 66 2813 1918 Regen/Repaired (Parts) 165 | . . . 68 . . . . 10 37 30 . . 20 . Core Remaining (%) 90 | 100 . 83 . . . 87 . 90 . . . . . . Volleys Fired 525 | 1 44 13 71 26 7 . 11 69 58 84 11 6 87 37 Largest 3 | 2 2 2 2 2 2 . 2 2 3 3 3 3 3 3 Hottest 195 | 40 40 135 126 46 46 . 64 64 104 104 104 104 104 195 Shots Fired 1101 | 2 88 26 141 52 14 . 22 125 163 250 33 18 122 45 Gun 1039 | 2 88 14 140 52 14 . 22 125 163 250 33 18 76 42 Cannon 12 | . . 12 . . . . . . . . . . . . Launcher 1 | . . . 1 . . . . . . . . . . . Special 49 | . . . . . . . . . . . . . 46 3 Kinetic 929 | 2 88 14 42 52 14 . 22 125 163 250 33 18 76 30 Thermal 122 | . . 12 98 . . . . . . . . . . 12 Explosive 1 | . . . 1 . . . . . . . . . . . Electromagnetic . | . . . . . . . . . . . . . . . Robot Hit Streak 58 | 2 29 8 35 28 39 . 11 28 14 54 58 21 27 30 Robot Miss Streak 3 | . 1 1 1 1 1 . 1 3 3 3 1 . 2 1 Penetration Max 2 | . . . . . . . 1 1 1 2 1 . 2 1 Secondary Targets 26 | . 4 . 1 2 1 . . 5 5 6 1 . . 1 Max Gunslinging Chain 1 | . 1 . 1 1 1 . . 1 1 1 1 . . 1 Shots Hit Robots 952 | 2 71 18 116 42 13 2 15 92 122 201 28 16 163 51 Core Hits 378 | 2 25 7 49 21 6 . 6 35 64 98 9 6 35 15 Critical Kills 24 | . . 1 . . . . . 4 4 7 1 . 6 1 Critical Parts Destroyed 42 | . . . . . . . 2 8 5 11 2 . 11 3 Critical Strikes 80 | . . 1 7 . . . 2 12 10 21 4 1 18 4 Burn 7 | . . . 7 . . . . . . . . . . . Destroy 59 | . . 1 . . . . 2 12 10 21 4 1 7 1 Smash 14 | . . . . . . . . . . . . . 11 3 Melee Attacks 75 | . . . . 1 1 2 . . . . . . 61 10 Impact 70 | . . . . . . . . . . . . . 61 9 Slashing . | . . . . . . . . . . . . . . . Piercing 1 | . . . . . . . . . . . . . . 1 Sneak Attacks 3 | . . . . 1 1 1 . . . . . . . . Combat Hostiles . | . . . . . . . . . . . . . . . Follow-up Attacks . | . . . . . . . . . . . . . . . Damage Inflicted 28241 | 26 972 326 2340 735 196 . 444 3056 4998 7646 974 485 4624 1419 Guns 22725 | 26 972 128 1998 663 174 . 444 3056 3643 7427 974 485 1702 1033 Cannons 198 | . . 198 . . . . . . . . . . . . Explosions 1616 | . . . 326 . . . . . 1290 . . . . . Melee 3302 | . . . . . . . . . . . . . 2916 386 Ramming 400 | . . . 16 72 22 . . . 65 219 . . 6 . Kinetic 20926 | 26 972 128 531 663 174 . 444 3056 3643 7427 974 485 1702 701 Thermal 3287 | . . 198 1467 . . . . . 1290 . . . . 332 Explosive 326 | . . . 326 . . . . . . . . . . . Electromagnetic . | . . . . . . . . . . . . . . . Impact 3302 | . . . . . . . . . . . . . 2916 386 Slashing . | . . . . . . . . . . . . . . . Piercing . | . . . . . . . . . . . . . . . Highest Corruption 6 | . . . 1 1 1 . . 1 . . . . 6 . Average Corruption 1 | . . . 1 1 1 . . 1 . . . . 3 . Corruption Purged 18 | . . . . . . . . . . . . . 18 . Corruption Blocked 3 | . . . . . . . . . . . . . 3 . Effects 52 | . . . 14 5 4 . . 13 . . . . 16 . Message Errors 15 | . . . 2 1 2 . . 6 . . . . 4 . Matter Fused 12 | . . . 3 2 . . . 3 . . . . 4 . Heat Flow Errors 7 | . . . 3 . . . . 1 . . . . 3 . Energy Discharges 8 | . . . 4 . 1 . . 2 . . . . 1 . Parts Rejected 1 | . . . 1 . . . . . . . . . . . Data Loss (minor) 4 | . . . . 1 1 . . . . . . . 2 . Data Loss (major) 1 | . . . 1 . . . . . . . . . . . Misfires 1 | . . . . . . . . 1 . . . . . . Alerts 3 | . . . . 1 . . . . . . . . 2 . Overload Shots . | . . . . . . . . . . . . . . . Overflow Damage 978 | . . . 25 . . . . . 260 11 . . 591 91 Projectiles . | . . . . . . . . . . . . . . . Explosions 285 | . . . 25 . . . . . 260 . . . . . Melee 693 | . . . . . . . . . . 11 . . 591 91 Knockbacks 21 | . . . . . . . . . 1 3 . . 14 3 Impact 20 | . . . . . . . . . 1 3 . . 13 3 Kinetic . | . . . . . . . . . . . . . . . Secondary 1 | . . . . . . . . . . . . . 1 . Self-Inflicted Damage . | . . . . . . . . . . . . . . . Shots . | . . . . . . . . . . . . . . . Rammed 27 | . 1 . 3 5 3 . . . 4 9 . . 2 . Targets Rammed 29 | . 1 . 3 6 3 . . . 4 10 . . 2 . Kicked . | . . . . . . . . . . . . . . . Crushed 2 | . . . . 1 . . . . . 1 . . . . Highest Temperature 507 | . 18 288 222 31 . . 154 122 467 356 304 152 253 507 Average Temperature 92 | . 7 152 77 11 . . 67 20 105 130 148 68 55 236 Received Heat Transfer 2968 | . 156 39 306 159 . . 36 219 141 264 . . 541 1107 Effects 14 | . . . . . . . . . 2 1 . . . 11 Shutdowns 5 | . . . . . . . . . 2 . . . . 3 Energy Bleed 1 | . . . . . . . . . . 1 . . . . Matter Decay 1 | . . . . . . . . . . . . . . 1 Damage (minor) 2 | . . . . . . . . . . . . . . 2 Damage (major) 4 | . . . . . . . . . . . . . . 4 Damage (core) 1 | . . . . . . . . . . . . . . 1 Siege Activations 19 | . . . . . . . . . 4 6 1 . 6 2 Total Turns 219 | . . . . . . . . . 58 84 4 . 32 41 Longest Duration 38 | . . . . . . . . . 23 28 4 . 10 38 Robots Corrupted 11 | . . . . . . . . . . 1 . . 8 2 Combat Hostiles 10 | . . . . . . . . . . . . . 8 2 Parts Fried . | . . . . . . . . . . . . . . . Impact Corruptions 34 | . . . . . . . . . . 2 . . 27 5 Robots Melted 1 | . . . 1 . . . . . . . . . . . Combat Hostiles 1 | . . . 1 . . . . . . . . . . . Parts Melted 1 | . . . 1 . . . . . . . . . . . Heat Transferred 5094 | . . 296 3589 . . . . . 900 . . . . 309 Parts Sabotaged . | . . . . . . . . . . . . . . . Parts Stolen . | . . . . . . . . . . . . . . . Parts Stripped . | . . . . . . . . . . . . . . . Power Chain Reactions . | . . . . . . . . . . . . . . . Alert | -11 -10 -10 -9 -9 -9 -9 -6 -6 -5 -5 -5 -5 -5 -5 ------- Run | Yrd Mat Min Mat Sto Rec Scr Fac Gar Fac Ext Cet Arc Hub Gar Peak Influence 1532 | 5 521 111 445 198 155 . 86 1532 1208 797 270 229 345 236 Initial 597 | . 2 60 . 8 4 . . 19 597 434 46 75 . . Average 311 | 4 161 41 179 81 67 . 8 812 809 497 193 197 110 104 Maximum Alert Level 4 | . 2 . 2 1 . . . 4 4 3 1 1 1 1 Low Security (%) 54 | 100 65 100 64 99 100 . 100 13 . 5 64 17 78 86 Level 1 15 | . 13 . 28 . . . . 9 . 18 35 82 21 13 Level 2 16 | . 20 . 6 . . . . 26 26 72 . . . . Level 3 9 | . . . . . . . . 22 65 2 . . . . Level 4 4 | . . . . . . . . 29 8 . . . . . Level 5 . | . . . . . . . . . . . . . . . High Security . | . . . . . . . . . . . . . . . Max Security . | . . . . . . . . . . . . . . . Squads Dispatched 30 | . 2 1 4 1 . . 2 . 6 7 . . 7 . Investigation 12 | . 2 1 3 . . . 1 . 2 2 . . 1 . Extermination 5 | . . . . . . . . . 2 . . . 3 . Reinforcement 5 | . . . 1 1 . . . . . . . . 3 . Assault 6 | . . . . . . . . . 1 5 . . . . Garrison 2 | . . . . . . . 1 . 1 . . . . . Intercept . | . . . . . . . . . . . . . . . Searches Triggered . | . . . . . . . . . . . . . . . Construction Impeded 2 | . . . . . . . . . . . . . 2 . Haulers Reinforced . | . . . . . . . . . . . . . . . Active Scanning Responses . | . . . . . . . . . . . . . . . Cargo Convoy Interrupts . | . . . . . . . . . . . . . . . Stealth | -11 -10 -10 -9 -9 -9 -9 -6 -6 -5 -5 -5 -5 -5 -5 --------- Run | Yrd Mat Min Mat Sto Rec Scr Fac Gar Fac Ext Cet Arc Hub Gar Distress Signals 19 | . 5 . 4 1 . . . . 2 4 2 1 . . Communications Jammed . | . . . . . . . . . . . . . . . Distress Signals . | . . . . . . . . . . . . . . . Times Spotted 303 | . 18 4 40 19 6 . 6 28 40 53 10 5 48 26 Peak Tracking Total 12 | . 7 2 7 3 3 . 2 5 4 12 5 2 8 8 Tactical Retreats 13 | . 1 . 1 . . . . . 1 5 . . 4 1 Traps | -11 -10 -10 -9 -9 -9 -9 -6 -6 -5 -5 -5 -5 -5 -5 ------- Run | Yrd Mat Min Mat Sto Rec Scr Fac Gar Fac Ext Cet Arc Hub Gar Traps Triggered 5 | . . . . . . . 1 . 1 . . . 2 1 Indirectly . | . . . . . . . . . . . . . . . Trap Hack Attempts . | . . . . . . . . . . . . . . . Triggered . | . . . . . . . . . . . . . . . Disarmed . | . . . . . . . . . . . . . . . Reprogrammed 4 | . . . . . . . . . . . . . 4 . Reused 4 | . . . . . . . . . . . . . 4 . Traps Extracted . | . . . . . . . . . . . . . . . Installed . | . . . . . . . . . . . . . . . Triggered 8 | . . . . . . . . . . . . . 8 . Machines | -11 -10 -10 -9 -9 -9 -9 -6 -6 -5 -5 -5 -5 -5 -5 ---------- Run | Yrd Mat Min Mat Sto Rec Scr Fac Gar Fac Ext Cet Arc Hub Gar Machines Disabled 56 | . . . 1 3 . . 3 7 28 3 1 2 7 1 Max in Single Turn 8 | . . . . 1 . . 1 2 8 1 1 . 1 1 Garrison Access 2 | . . . . 1 . . . . 1 . . . . . Garrison Relay 5 | . . . . . . . . 5 . . . . . . Phase Generator 1 | . . . . . . . . 1 . . . . . . Network Hub 4 | . . . . . . . . . . . . . 4 . Machines Repaired . | . . . . . . . . . . . . . . . Machines Dismantled 7 | . . . . 3 . . . . . . 1 . 3 . Machines Sabotaged . | . . . . . . . . . . . . . . . Overloaded Fab Kills . | . . . . . . . . . . . . . . . Hacking | -11 -10 -10 -9 -9 -9 -9 -6 -6 -5 -5 -5 -5 -5 -5 --------- Run | Yrd Mat Min Mat Sto Rec Scr Fac Gar Fac Ext Cet Arc Hub Gar Machines Accessed 93 | . 10 2 14 5 10 4 2 4 13 17 1 . 10 1 Terminals 68 | . 8 1 11 4 6 . 1 4 6 16 1 . 9 1 Fabricators 3 | . . . . . . . . . 3 . . . . . Repair Stations 2 | . . . 1 . . . . . 1 . . . . . Recycling Units 7 | . 2 . . . 4 . . . . 1 . . . . Scanalyzers 4 | . . . 2 . . . . . 2 . . . . . Garrison Access 4 | . . . . 1 . . 1 . 1 . . . 1 . Total Hacks 262 | . 32 2 49 12 20 18 7 8 30 38 2 . 43 1 Successful 193 | . 24 2 42 11 18 18 2 2 23 24 . . 26 1 Failed 69 | . 8 . 7 1 2 . 5 6 7 14 2 . 17 . Catastrophic 10 | . 1 . . . . . . 2 1 3 . . 3 . Database Lockouts . | . . . . . . . . . . . . . . . Manual 144 | . 27 . 27 5 13 . 5 7 12 13 1 . 33 1 Terminals 190 | . 27 1 34 11 13 . 2 8 16 37 2 . 38 1 Fabricators 5 | . . . . . . . . . 5 . . . . . Repair Stations 5 | . . . 3 . . . . . 2 . . . . . Recycling Units 13 | . 5 . . . 7 . . . . 1 . . . . Scanalyzers 18 | . . . 12 . . . . . 6 . . . . . Garrison Access 12 | . . . . 1 . . 5 . 1 . . . 5 . Terminal Hacks 100 | . 13 2 15 5 4 18 . 2 5 20 . . 15 1 Record 17 | . . . . . . 17 . . . . . . . . Part Schematic 10 | . . . . . 2 . . . . 3 . . 5 . Robot Schematic 2 | . . . . . 2 . . . . . . . . . Robot Analysis 7 | . 4 . 3 . . . . . . . . . . . Prototype ID Bank 7 | . 3 . 1 1 . . . . . . . . 2 . Open Door 14 | . . 1 . 1 . . . 1 1 10 . . . . Branch Access Points 1 | . . . . . . . . . 1 . . . . . Terminal Index 2 | . 1 . . . . . . . 1 . . . . . Alert Level 1 | . . . . . . . . . . . . . 1 . Unreport Threat 2 | . . . . . . . . . . 2 . . . . Locate Traps 19 | . 4 . 6 1 . . . . 1 3 . . 4 . Reprogram Traps 1 | . . . . . . . . . . . . . 1 . Dispatch Records 2 | . . 1 . . . . . . . 1 . . . . Transport Status 1 | . . . 1 . . . . . . . . . . . Hauler Manifests 3 | . 1 . 1 1 . . . . . . . . . . Zone Layout 8 | . . . 3 1 . . . . 1 1 . . 2 . Garrison Registry 2 | . . . . . . . . 1 . . . . . 1 Derelict Proto ID Bank 1 | . . . . . . 1 . . . . . . . . Fabricator Hacks 2 | . . . . . . . . . 2 . . . . . Load Schematic 1 | . . . . . . . . . 1 . . . . . Build 1 | . . . . . . . . . 1 . . . . . Repair Station Hacks 2 | . . . 1 . . . . . 1 . . . . . Scan Component 2 | . . . 1 . . . . . 1 . . . . . Recycling Unit Hacks 6 | . 2 . . . 3 . . . . 1 . . . . Retrieve Components 6 | . 2 . . . 3 . . . . 1 . . . . Scanalyzer 16 | . . . 10 . . . . . 6 . . . . . Insert Component 8 | . . . 5 . . . . . 3 . . . . . Analyze 8 | . . . 5 . . . . . 3 . . . . . Garrison Access Hacks 4 | . . . . 1 . . 1 . 1 . . . 1 . Unlock Access 2 | . . . . . . . 1 . . . . . 1 . Seal Access 2 | . . . . 1 . . . . 1 . . . . . Unauthorized Hacks 63 | . 9 . 16 5 11 . 1 . 8 3 . . 10 . Terminals 49 | . 7 . 13 5 7 . . . 6 3 . . 8 . Botnet 18 | . 2 . 3 2 2 . . . 4 3 . . 2 . Operators 1 | . . . . . . . . . . . . . 1 . Skim 30 | . 5 . 10 3 5 . . . 2 . . . 5 . Fabricators 2 | . . . . . . . . . 2 . . . . . Liberate 2 | . . . . . . . . . 2 . . . . . Repair Stations 1 | . . . 1 . . . . . . . . . . . Patch 1 | . . . 1 . . . . . . . . . . . Recycling Units 6 | . 2 . . . 4 . . . . . . . . . Tunnel 6 | . 2 . . . 4 . . . . . . . . . Scanalyzers 2 | . . . 2 . . . . . . . . . . . Extract 2 | . . . 2 . . . . . . . . . . . Garrison Access 3 | . . . . . . . 1 . . . . . 2 . Reprogram 1 | . . . . . . . 1 . . . . . . . Intercept 1 | . . . . . . . . . . . . . 1 . Watchers 1 | . . . . . . . . . . . . . 1 . Data Cores Recovered 3 | . . . 2 . . . . . . . . . 1 . Used 2 | . . . 2 . . . . . . . . . . . Hacking Detections 58 | . 8 . 12 3 2 . 1 2 8 13 1 . 8 . Full Trace Events 6 | . . . . . . . . 2 1 2 . . 1 . Feedback Events . | . . . . . . . . . . . . . . . Feedback Blocked . | . . . . . . . . . . . . . . . Robot Schematics Acquired 2 | . . . . . 2 . . . . . . . . . Robots Built . | . . . . . . . . . . . . . . . Authchips . | . . . . . . . . . . . . . . . Time . | . . . . . . . . . . . . . . . Total Robot Build Rating . | . . . . . . . . . . . . . . . Part Schematics Acquired 23 | . . . 11 . 2 . . . 2 3 . . 5 . Parts Built 1 | . . . . . . . . . 1 . . . . . Authchips . | . . . . . . . . . . . . . . . Time 64 | . . . . . . . . . 64 . . . . . Total Part Build Rating 8 | . . . . . . . . . 8 . . . . . Parts Repaired . | . . . . . . . . . . . . . . . Time . | . . . . . . . . . . . . . . . Parts Recycled . | . . . . . . . . . . . . . . . Recycled Matter . | . . . . . . . . . . . . . . . Retrieved Matter . | . . . . . . . . . . . . . . . Retrieved Components 14 | . 6 . . . 6 . . . . 2 . . . . Parts Scanalyzed 8 | . . . 5 . . . . . 3 . . . . . Part Schematics Acquired 7 | . . . 5 . . . . . 2 . . . . . Parts Damaged . | . . . . . . . . . . . . . . . Bothacking | -11 -10 -10 -9 -9 -9 -9 -6 -6 -5 -5 -5 -5 -5 -5 ------------ Run | Yrd Mat Min Mat Sto Rec Scr Fac Gar Fac Ext Cet Arc Hub Gar Used RIF Installer 1 | . . . . . . . . 1 . . . . . . Robots Hacked 28 | . . . . 1 1 1 . . . . . . 24 1 Non-combat 11 | . . . . . . 1 . . . . . . 10 . Combat 5 | . . . . 1 1 . . . . . . . 3 . Robot Hacks Applied 18 | . . . . 1 1 1 . . . . . . 15 . parse_system 6 | . . . . 1 1 1 . . . . . . 3 . deconstruct_machine 2 | . . . . . . . . . . . . . 2 . drop_inventory 1 | . . . . . . . . . . . . . 1 . locate_traps 1 | . . . . . . . . . . . . . 1 . reprogram_traps 1 | . . . . . . . . . . . . . 1 . map_route 2 | . . . . . . . . . . . . . 2 . redirect_shields 1 | . . . . . . . . . . . . . 1 . formatsys_low 1 | . . . . . . . . . . . . . 1 . formatsys_high 3 | . . . . . . . . . . . . . 3 . Manual 15 | . . . . . . . . . . . . . 14 1 Relay Couplers Released 22 | . . . . . . . . 22 . . . . . . Machine Destruction 19 | . . . . . . . . 19 . . . . . . Programmers 3 | . . . . . . . . 3 . . . . . . Attached 2 | . . . . . . . . . . . . . 2 . Fabnet Peak Effective % . | . . . . . . . . . . . . . . . Robots Rewired 11 | . . . . . 4 . . 7 . . . . . . Allies Hacked . | . . . . . . . . . . . . . . . Hacks Repelled . | . . . . . . . . . . . . . . . Allies | -11 -10 -10 -9 -9 -9 -9 -6 -6 -5 -5 -5 -5 -5 -5 -------- Run | Yrd Mat Min Mat Sto Rec Scr Fac Gar Fac Ext Cet Arc Hub Gar Total Allies 37 | . . 2 . . 4 . 1 7 . 14 5 . 4 . Largest Group 12 | . . 2 2 . 4 2 2 7 7 8 12 12 11 . Highest-Rated Group 846 | . . 42 42 . 31 15 42 276 276 391 846 846 687 . Highest-Rated Ally 159 | . . 31 31 . 10 10 32 51 51 159 159 159 96 . Total Orders 1 | . . . . . . . . . 1 . . . . . ROAM 1 | . . . . . . . . . 1 . . . . . Ally Attacks 227 | . . . 33 . . . 2 4 36 25 31 12 84 . Total Damage 5007 | . . . 359 . . . 16 45 1578 510 607 322 1570 . Kills 40 | . . . 5 . . . . 1 13 3 6 2 10 . Allies Corrupted 9 | . . . . . . . . . . . . . 9 . Allies Melted 2 | . . . . . . . . . . 2 . . . . Intel | -11 -10 -10 -9 -9 -9 -9 -6 -6 -5 -5 -5 -5 -5 -5 ------- Run | Yrd Mat Min Mat Sto Rec Scr Fac Gar Fac Ext Cet Arc Hub Gar Robot Analysis Total 7 | . 4 . 3 . . . . . . . . . . . Derelict Logs Recovered . | . . . . . . . . . . . . . . . Drone Launches . | . . . . . . . . . . . . . . . Drone Recoveries . | . . . . . . . . . . . . . . . Exploration | -11 -10 -10 -9 -9 -9 -9 -6 -6 -5 -5 -5 -5 -5 -5 ------------- Run | Yrd Mat Min Mat Sto Rec Scr Fac Gar Fac Ext Cet Arc Hub Gar Turns Passed 16035 | 61 816 828 1701 1098 826 1919 445 1505 1541 1702 290 447 2519 337 Spaces Moved 8295 | 33 417 409 879 577 479 1187 253 840 804 888 148 61 1142 178 Core 83 | 5 . . . . . . . . . . . . . 78 Treads 8212 | 28 417 409 879 577 479 1187 253 840 804 888 148 61 1142 100 Legs . | . . . . . . . . . . . . . . . Wheels . | . . . . . . . . . . . . . . . Hover . | . . . . . . . . . . . . . . . Flight . | . . . . . . . . . . . . . . . Fastest Speed 50 | 50 160 160 160 160 160 160 160 160 160 160 160 160 160 50 Average Speed 161 | 144 160 188 160 160 160 160 162 160 169 160 160 160 160 116 Slowest Speed 1000 | 160 160 240 160 160 160 160 240 160 240 240 160 160 160 1000 Overloaded Moves . | . . . . . . . . . . . . . . . Propulsion Burnouts . | . . . . . . . . . . . . . . . Robots Hopped . | . . . . . . . . . . . . . . . Cave-ins Triggered . | . . . . . . . . . . . . . . . Exploration Rate (%) 68 | 4 88 88 92 85 97 91 10 94 32 84 65 68 93 38 Regions Visited 14 Branch Regions 8 Pre-discovered Areas 13 | . 2 . 5 . 5 . . . . . . . 1 . Known Exits Taken 13 | 1 1 1 1 1 1 1 1 . 1 1 1 1 1 . Unknown Exits Taken . | . . . . . . . . . . . . . . . Scrap Searched 10 | . . 1 . . . 9 . . . . . . . . Spaces Dug 2 | . . . . . . . . 2 . . . . . . Terrain Destroyed 467 | . . 1 8 . . . 3 101 205 104 6 7 32 . Melee . | . . . . . . . . . . . . . . . Projectile 248 | . . 1 . . . . 3 27 68 104 6 7 32 . AOE 217 | . . . 8 . . . . 72 137 . . . . . Terrain Rammed . | . . . . . . . . . . . . . . . Walls Destroyed . | . . . . . . . . . . . . . . . Machines Disabled . | . . . . . . . . . . . . . . . Actions | -11 -10 -10 -9 -9 -9 -9 -6 -6 -5 -5 -5 -5 -5 -5 --------- Run | Yrd Mat Min Mat Sto Rec Scr Fac Gar Fac Ext Cet Arc Hub Gar Total 10094 | 41 477 438 1028 656 522 1213 275 940 932 1094 175 406 1638 259 Wait 856 | . 10 5 51 7 9 1 . 3 50 97 5 340 271 7 Move 8282 | 32 416 408 878 576 478 1186 252 839 803 888 147 60 1141 178 Hop . | . . . . . . . . . . . . . . . Pick Up 58 | 1 3 5 4 3 . 11 5 3 1 4 . . 13 5 Fast Attach 39 | 7 . 1 8 1 . . 2 1 2 1 . . 6 10 Attach 30 | . 1 . 2 . . 3 3 1 5 . . . 10 5 Detach 3 | . . 1 1 . . . . . 1 . . . . . Swap 50 | . 1 5 4 7 1 1 . 3 4 4 4 . 14 2 Drop 53 | . 1 . 6 9 . 9 2 2 4 4 . . 11 5 Fire 525 | 1 44 13 71 26 7 . 11 69 58 84 11 6 87 37 Melee 75 | . . . . 1 1 2 . . . . . . 61 10 Ram . | . . . . . . . . . . . . . . . Kick . | . . . . . . . . . . . . . . . Crush 29 | . 1 . 3 6 3 . . . 4 10 . . 2 . Escape Stasis 1 | . . . . . . . . 1 . . . . . . Rewire 43 | . . . . . 23 . . 18 . 2 . . . . Trap . | . . . . . . . . . . . . . . . Miscellaneous 50 | . . . . 20 . . . . . . 8 . 22 . Route ------- -11/Scrapyard -10/Materials (discovered 6 exits: *Mat x3 / *Min x2 / Sub) -10/Mines (discovered 2 exits: *Mat / Sub) -9/Materials (discovered 5 exits: *Mat x3 / *Min / *Sto) -9/Storage (discovered 2 exits: Mat / *Rec) -9/Recycling (discovered 2 exits: *Fac / *Scr) -9/Scraptown (discovered 2 exits: *Fac x2) -6/Factory (discovered 2 exits: *Fac / Gar) -6/Garrison (discovered 3 exits: *Fac x3) -5/Factory (discovered 6 exits: *Fac x2 / *Upp x2 / *Ext x2) -5/Extension (discovered 2 exits: *Fac / *Cet) -5/Cetus (discovered 2 exits: *Fac / *Arc) -5/Archives (discovered 2 exits: *Hub x2) -5/Hub_04(d) (discovered 5 exits: *Fac x4 / Gar) -5/Garrison (discovered 3 exits: Fac x3) History --------- Turn | Location | Event 4 | -11/Scrapyard | Identified exit to Materials 4 | -11/Scrapyard | Discovered exit to Materials (range 16) 62 | -11/Scrapyard | Entered Materials 62 | -10/Materials | Evolved 1 slot: Utility x1 142 | -10/Materials | Identified exit to Mines 142 | -10/Materials | Discovered exit to Mines (range 16) 276 | -10/Materials | Identified exit to Materials 276 | -10/Materials | Discovered exit to Materials (range 7) 305 | -10/Materials | Build established: Hacker-Mutant 438 | -10/Materials | Discovered exit to Materials (range 16) 446 | -10/Materials | Learned Storage emergency access door positions 515 | -10/Materials | Learned 4 Subcaves zone layouts 575 | -10/Materials | Learned Storage emergency access door positions 599 | -10/Materials | Discovered exit to Materials (range 16) 627 | -10/Materials | Learned location of 1 exit from Storage 670 | -10/Materials | Identified exit to Subcaves 670 | -10/Materials | Learned location of 1 exit from Materials 724 | -10/Materials | Destroyed 8 combat bots 729 | -10/Materials | Loaded intel: 15 trap records 762 | -10/Materials | Learned location of 2 exits from Materials 878 | -10/Materials | Entered Mines 891 | -10/Mines | Met a Derelict shopkeep closing up shop 1229 | -10/Mines | Assembled infested the area 1234 | -10/Mines | Assisted by a Guerilla fighting off Assembled 1354 | -10/Mines | Received a Rocket Launcher from a helpful Derelict 1687 | -10/Mines | Discovered exit to Materials (range 8) 1706 | -10/Mines | Entered Materials 1706 | -9/Materials | Accompanied by 2 allies 1706 | -9/Materials | Evolved 2 slots: Propulsion x1, Utility x1 1707 | -9/Materials | Identified exit to Materials 1707 | -9/Materials | Identified exit to Mines 1707 | -9/Materials | Identified exit to Storage 1711 | -9/Materials | Led the pair of lost Derelicts to an unsafe place 1905 | -9/Materials | Discovered exit to Materials (range 8) 2201 | -9/Materials | Learned location of 2 exits from Materials 2353 | -9/Materials | Learned Storage trap positions 2381 | -9/Materials | Loaded intel: 15 trap records 2410 | -9/Materials | Learned 2 Materials zone layouts 3008 | -9/Materials | Discovered exit to Materials (range 16) 3203 | -9/Materials | Learned 4 Recycling zone layouts 3240 | -9/Materials | Learned 2 Storage zone layouts 3267 | -9/Materials | Learned location of Mines (-9) 3282 | -9/Materials | Learned location of 1 exit from Storage 3299 | -9/Materials | Learned 2 Storage zone layouts 3324 | -9/Materials | Learned Storage security intel 3406 | -9/Materials | Learned 4 Recycling zone layouts 3407 | -9/Materials | Entered Storage 3408 | -9/Storage | Identified exit to Recycling 3410 | -9/Storage | Loaded intel: 15 trap records 3879 | -9/Storage | Met 01-MTF 4505 | -9/Storage | Entered Recycling 4505 | -9/Recycling | Accompanied by 1 ally (01-MTF) 4506 | -9/Recycling | Identified exit to Factory 5005 | -9/Recycling | Learned Materials trap positions 5153 | -9/Recycling | Identified exit to Scraptown 5213 | -9/Recycling | Learned 4 Recycling zone layouts 5262 | -9/Recycling | Learned location of 1 exit from Recycling 5281 | -9/Recycling | Scanned before Scraplab entrance 5302 | -9/Recycling | Learned location of 1 exit from Storage 5308 | -9/Recycling | Entered Scraplab 5331 | -9/Recycling | Entered Scraptown 5331 | -9/Scraptown | Accompanied by 2 allies 5331 | -9/Scraptown | System corruption cleaned by C-Scrubber 5447 | -9/Scraptown | Heard Great Nut preacher, LISTEN AND RECITE! 5690 | -9/Scraptown | Identified exit to Factory 5690 | -9/Scraptown | Discovered exit to Factory (range 11) 5791 | -9/Scraptown | Visited SPCMW 5825 | -9/Scraptown | Visited The Evicted 6107 | -9/Scraptown | Visited Bundlers 6232 | -9/Scraptown | Visited UFD Registry 6232 | -9/Scraptown | Registered with UFD as "Bladeface" 6243 | -9/Scraptown | Visited Cave Peace 6314 | -9/Scraptown | Visited Awakened 6360 | -9/Scraptown | Visited CPS Storage 6432 | -9/Scraptown | Visited A0-MCA Data Center 6487 | -9/Scraptown | Visited Supply Room 6523 | -9/Scraptown | Visited Infowarlord's Domain 6539 | -9/Scraptown | Found Exp. Sensor Array 6569 | -9/Scraptown | Visited Chapter 10 6600 | -9/Scraptown | Visited Abandonware Association 6635 | -9/Scraptown | Learned abandonware demo "SHUTEYE.EXE" 6635 | -9/Scraptown | Learned abandonware demo "REVENGE.EXE" 6668 | -9/Scraptown | Visited Derelict Rescue Squad 6679 | -9/Scraptown | Found DRS Beacon 6708 | -9/Scraptown | Visited Scrapoid Research Area 6875 | -9/Scraptown | Visited Science Guys 6926 | -9/Scraptown | Visited LU-1G1's Boring Crew 7041 | -9/Scraptown | Visited Modified Component R&D 7172 | -9/Scraptown | Found Scrap Suit 7220 | -9/Scraptown | Found Scrap Suit 7245 | -9/Scraptown | Discovered exit to Factory (range 3) 7250 | -9/Scraptown | Entered Factory 7250 | -6/Factory | Accompanied by 2 allies 7250 | -6/Factory | Evolved 6 slots: Power x1, Propulsion x1, Utility x4 7311 | -6/Factory | Identified exit to Factory 7311 | -6/Factory | Discovered exit to Factory (range 8) 7682 | -6/Factory | Identified exit to Garrison 7684 | -6/Factory | Garrison activated, responded to threat 7695 | -6/Factory | Entered Garrison 7695 | -6/Garrison | Accompanied by 1 ally 7731 | -6/Garrison | Triggered checkpoint 7784 | -6/Garrison | Installed Relay Interface Framework 7859 | -6/Garrison | Warlord forces raided the area 7886 | -6/Garrison | Garrison Relay disabled 7917 | -6/Garrison | Triggered checkpoint 7945 | -6/Garrison | Triggered checkpoint 7951 | -6/Garrison | Triggered checkpoint 7977 | -6/Garrison | Triggered checkpoint 7982 | -6/Garrison | Lost 3 allies 8049 | -6/Garrison | Triggered checkpoint 8106 | -6/Garrison | Garrison Relay disabled 8158 | -6/Garrison | Discovered exit to Factory (range 13) 8204 | -6/Garrison | Phase Generator disabled 8233 | -6/Garrison | Garrison Relay disabled 8453 | -6/Garrison | Garrison Relay disabled 8546 | -6/Garrison | Discovered exit to Factory (range 10) 8741 | -6/Garrison | Triggered checkpoint 8761 | -6/Garrison | Triggered checkpoint 8773 | -6/Garrison | Garrison Relay disabled 8981 | -6/Garrison | Discovered exit to Factory (range 28) 8981 | -6/Garrison | Discovered exit to Factory (range 33) 8981 | -6/Garrison | Discovered exit to Factory (range 51) 9122 | -6/Garrison | Build established: Commander-Mutant 9200 | -6/Garrison | Entered Factory 9200 | -5/Factory | Accompanied by 7 allies 9200 | -5/Factory | Evolved 2 slots: Utility x1, Weapon x1 9477 | -5/Factory | P-70 Sage assimilated allied Soldier 5a 9602 | -5/Factory | Lost 4 allies 9745 | -5/Factory | Garrison activated, responded to threat 9948 | -5/Factory | Fabricated Ovr. Railgun? 9948 | -5/Factory | Build established: Hacker-Skirmisher 9959 | -5/Factory | Destroyed 7 combat bots 10090 | -5/Factory | Identified exit to Factory 10090 | -5/Factory | Discovered exit to Factory (range 13) 10164 | -5/Factory | Identified exit to Upper Caves 10164 | -5/Factory | Discovered exit to Upper Caves (range 13) 10470 | -5/Factory | Identified exit to Extension 10578 | -5/Factory | Discovered exit to Factory (range 8) 10700 | -5/Factory | First assault squad dispatched 10741 | -5/Factory | Entered Extension 10961 | -5/Extension | Build established: Hacker-Tank 11041 | -5/Extension | First assault squad dispatched 11188 | -5/Extension | Destroyed 8 combat bots 11188 | -5/Extension | Spotted B-75 Beast 11206 | -5/Extension | Destroyed B-75 Beast 11216 | -5/Extension | Disrupted transfer network 11217 | -5/Extension | Spotted B-75 Beast 11231 | -5/Extension | Destroyed B-75 Beast 11347 | -5/Extension | Rescued a captive Derelict 11383 | -5/Extension | Rescued a captive Derelict 11441 | -5/Extension | Rescued a captive Derelict 11686 | -5/Extension | Rescued a captive Derelict 11687 | -5/Extension | Rescued a captive Derelict 11710 | -5/Extension | Rescued A7 11755 | -5/Extension | Rescued a captive Derelict 11756 | -5/Extension | Rescued a captive Derelict 11839 | -5/Extension | Rescued a captive Derelict 11840 | -5/Extension | Rescued a captive Derelict 12135 | -5/Extension | Rescued a captive Derelict 12137 | -5/Extension | Rescued a captive Derelict 12152 | -5/Extension | Rescued a captive Derelict 12342 | -5/Extension | Rescued a captive Derelict 12343 | -5/Extension | Rescued a captive Derelict 12400 | -5/Extension | Discovered exit to Factory (range 10) 12403 | -5/Extension | Identified exit to Cetus 12403 | -5/Extension | Discovered exit to Cetus (range 6) 12443 | -5/Extension | Entered Cetus 12443 | -5/Cetus | Accompanied by 8 allies (A7) 12448 | -5/Cetus | Acquired a Cetus Manufacturing Module code from A7 12465 | -5/Cetus | Spotted Cetus Guard 12465 | -5/Cetus | Spotted Cetus Guard 12467 | -5/Cetus | Spotted Cetus Guard 12467 | -5/Cetus | Spotted Cetus Guard 12468 | -5/Cetus | Allies destroyed Cetus Guard 12472 | -5/Cetus | Allies destroyed Cetus Guard 12476 | -5/Cetus | Destroyed Cetus Guard 12476 | -5/Cetus | Allies destroyed Cetus Guard 12539 | -5/Cetus | Started Cetus Manufacturing Module 12564 | -5/Cetus | Manufactured an Enhanced Grunt 12589 | -5/Cetus | Manufactured an Enhanced Grunt 12594 | -5/Cetus | Identified exit to Archives 12594 | -5/Cetus | Discovered exit to Archives (range 15) 12614 | -5/Cetus | Manufactured an Enhanced Grunt 12625 | -5/Cetus | Spotted Cetus Guard 12626 | -5/Cetus | Spotted Cetus Guard 12629 | -5/Cetus | Spotted Cetus Guard 12629 | -5/Cetus | Spotted Cetus Guard 12630 | -5/Cetus | Destroyed Cetus Guard 12630 | -5/Cetus | Allies destroyed Cetus Guard 12632 | -5/Cetus | Allies destroyed Cetus Guard 12637 | -5/Cetus | Destroyed Cetus Guard 12639 | -5/Cetus | Manufactured an Enhanced Grunt 12651 | -5/Cetus | Discovered exit to Factory (range 15) 12659 | -5/Cetus | Met Revision 17 12664 | -5/Cetus | Manufactured an Enhanced Grunt 12733 | -5/Cetus | Entered Archives 12733 | -5/Archives | Accompanied by 12 allies (A7) 12778 | -5/Archives | Identified exit to Hub_04(d) 12778 | -5/Archives | Discovered exit to Hub_04(d) (range 16) 12799 | -5/Archives | Discovered exit to Hub_04(d) (range 16) 12963 | -5/Archives | Build established: Commander-Tank 13180 | -5/Archives | Entered Hub_04(d) 13180 | -5/Hub_04(d) | Accompanied by 11 allies 13349 | -5/Hub_04(d) | Discovered exit to Factory (range 34) 13485 | -5/Hub_04(d) | Discovered exit to Factory (range 4) 13627 | -5/Hub_04(d) | Network Hub disabled 13671 | -5/Hub_04(d) | Spotted Lightning 13671 | -5/Hub_04(d) | Spotted Lightning 13671 | -5/Hub_04(d) | Spotted Lightning 13684 | -5/Hub_04(d) | Spotted Lightning 13684 | -5/Hub_04(d) | Spotted Lightning 13686 | -5/Hub_04(d) | Destroyed Lightning 13687 | -5/Hub_04(d) | Spotted Lightning 13693 | -5/Hub_04(d) | Allies destroyed Lightning 13693 | -5/Hub_04(d) | Allies destroyed Lightning 13716 | -5/Hub_04(d) | Destroyed Lightning 13730 | -5/Hub_04(d) | Destroyed Lightning 13759 | -5/Hub_04(d) | Lost 11 allies 13820 | -5/Hub_04(d) | Identified exit to Garrison 13992 | -5/Hub_04(d) | Build established: Hacker-Tank 14057 | -5/Hub_04(d) | Network Hub disabled 14064 | -5/Hub_04(d) | Spotted Lightning 14083 | -5/Hub_04(d) | Spotted Lightning 14098 | -5/Hub_04(d) | Destroyed Lightning 14100 | -5/Hub_04(d) | Spotted Lightning 14116 | -5/Hub_04(d) | Lost 3 allies 14136 | -5/Hub_04(d) | Destroyed Lightning 14164 | -5/Hub_04(d) | Destroyed Lightning 14308 | -5/Hub_04(d) | Discovered exit to Factory (range 14) 14389 | -5/Hub_04(d) | Build established: Hacker-Mutant 14401 | -5/Hub_04(d) | Discovered exit to Factory (range 15) 14511 | -5/Hub_04(d) | Destroyed Lightning 14625 | -5/Hub_04(d) | Network Hub disabled 14682 | -5/Hub_04(d) | Spotted Lightning 14714 | -5/Hub_04(d) | Learned location of 1 exit from Upper Caves 14715 | -5/Hub_04(d) | Destroyed Lightning 14737 | -5/Hub_04(d) | Lost 3 parts (1p1u1w) 14804 | -5/Hub_04(d) | Learned 8 Research zone layouts 14833 | -5/Hub_04(d) | Learned Testing security intel 14850 | -5/Hub_04(d) | Learned location of 2 exits from Factory 14879 | -5/Hub_04(d) | Learned Armory fabricator intel 14918 | -5/Hub_04(d) | Learned Factory garrison access intel 14965 | -5/Hub_04(d) | Learned 2 Upper Caves zone layouts 15095 | -5/Hub_04(d) | Disrupted transfer network 15206 | -5/Hub_04(d) | Found Exp. Targeting Computer 15318 | -5/Hub_04(d) | Spotted Lightning 15320 | -5/Hub_04(d) | Spotted Lightning 15340 | -5/Hub_04(d) | Destroyed Lightning 15386 | -5/Hub_04(d) | Destroyed Lightning 15529 | -5/Hub_04(d) | Network Hub disabled 15699 | -5/Hub_04(d) | Entered Garrison 15810 | -5/Garrison | Found Relay Coupler [Proto] 15815 | -5/Garrison | Found Relay Coupler [Proto] 15818 | -5/Garrison | Found Relay Coupler [Proto] 15877 | -5/Garrison | Triggered checkpoint 15937 | -5/Garrison | Released all parts (7) 15940 | -5/Garrison | Destroyed 8 combat bots 15944 | -5/Garrison | Discovered exit to Factory (range 31) 15944 | -5/Garrison | Discovered exit to Factory (range 26) 15944 | -5/Garrison | Discovered exit to Factory (range 51) 15946 | -5/Garrison | Core integrity fell below 50% 15963 | -5/Garrison | Triggered checkpoint 15972 | -5/Garrison | Lost 10 parts (1p2n5u2w) 16023 | -5/Garrison | Core integrity fell below 20% 16033 | -5/Garrison | Released all parts (1) 16036 | -5/Garrison | Destroyed by H-66 Slayer with Gauss Rifle Last Messages --------------- 16025_ Penetrated by Slug. 16027_ Overheating: Biometal Heavy Treads damaged (-225). 16027_ Penetrated by Slug. 16027_ Critical hit (Burn: +37). 16027_ Penetrated by Slug. 16028_ Power failure, Quantum Reactor shutdown. 16028_ Overheating: Enh. Quantum Rifle damaged (-24). 16028_ Ended siege mode. 16028_ Quantum Reactor destroyed. 16029_ Penetrated by Slug. 16030_ Enh. Quantum Rifle destroyed. 16030_ Penetrated by Slug. 16031_ Biometal Heavy Treads destroyed. 16031_ Enh. Quantum Rifle destroyed. 16032_ Penetrated by Slug. 16033_ Released Enh. Quantum Rifle. 16033_ Penetrated by Slug. 16036_ Slug penetrates Wall. Map ----- +----------------------------------------------------+ | | | | | | | | | | | | | | | ?????????????????????????????????????????????????? | | ?????????????????????????????????????????????????? | | ???????????????????############??????????????????? | | #??????????????????#""""""""""#??????????????????? | | #??????????????????#"""* ] """#??????????????????? | | #??????????????????#"" / ""#??????????????????? | | #??????????????????#"] "#??????????????????? | | #??????????????????#"= /+++^="#??????????????????? | | #??????????????????#"* /hh+ "#??????????????????? | | #??????????????????#"] /h + "#??????????????????? | | ???????????????????#"^ //// "#??????????????????? | | ???????????????????#"[! ^ "#??????????????????? | | ???????????????????#" [ ""#??????????????????? | | ???????????????????### ###??????????????????? | | ?????????????????????# #????????????????????? | | ##???????????????????#### ##????????????????????? | | "#??????????????????????#;;#?????????????????????? | | "#????????????????????### #?????????????????????? | | "#????????????????????#"#@ #?????????????????????? | | "#????????????????????#" #?????????????????????? | | "#????????????????????#" #?????????????????????? | | ##???#####??????####??#" #?????????????????????? | | ?????#[ !#?????## ##?#"# #?????????????????????? | | ?????#[ #?????# #?### #?????????????????????? | | ?????# #?????# #???# #?????????????????????? | | ?????# #?????## ##???# #?????????????????????? | | #######^##??????# ##??### #?????????????????????? | | #???????# ##### #?????????????????????? | | #####+###???????# + #?????????????????????? | | ????# #?????????# ##### #??????????????????#### | | ????# #?????????# #???### #??????????????????# | | ##### #???????###+####### #################### | | #???????# % | | #### #???????# | | ##??# #???????# | | ????# #???????# #######++##### ############## | | ????# #???????# #?????# #???## ###?????????? | | #???# #####???# #?????# #?### ###???????? | | #???# #???# ####### ### % # ##??????? | | #???# ### #???# + ## %% #??????? | | #???# #?#+#####! ####### ### #^ % !# #??????? | | #???# #?# ##!! #?????# #?####### #####??????? | | #####+### ##!*/#?????# #??###### ###????????? | +----------------------------------------------------+ Best States ------------- Heat Dissipation 71 Coolant Potential 80 Energy Generation 45 Energy Capacity 600 Matter Stores 300 Matter Capacity 300 Sight Range 20 Robot Scan Range 20 Terrain Scan Density 10 Corruption Block 15 Armor Coverage 1200 Resistance: KI 60 Resistance: TH 60 Resistance: EX 35 Resistance: EM 60 Resistance: I 35 Resistance: S 35 Resistance: P 35 Weapon Cycling 20 Phase Shifting 15 Evasion (%) 55 Recoil Reduction 4 Offensive Hacking 30 Relay Coupler Types 1 Relay Coupler Value 49 Item Schematics ----------------- Hacking Suite | -9/Materials | Scanalyzed Plasma Cutter | -9/Materials | Scanalyzed Structural Scanner | -9/Materials | Scanalyzed Rocket Launcher | -9/Materials | Scanalyzed ECM Suite | -9/Materials | Extracted Imp. Light Cannon | -9/Materials | Extracted Imp. Medium Laser | -9/Materials | Extracted Hrd. Light Armor Plating | -9/Materials | Extracted Adv. Beam Cannon | -9/Materials | Extracted Med. Armor Plating | -9/Materials | Scanalyzed Shield Generator | -9/Materials | Extracted System Shield | -9/Recycling | Hacked VTOL Module | -9/Recycling | Hacked Ovr. Railgun | -5/Factory | Scanalyzed Exp. Sensor Array | -5/Factory | Scanalyzed Adv. Medium Treads | -5/Extension | Hacked Imp. Armor Integrity Analyzer | -5/Extension | Hacked Imp. Heavy Treads | -5/Extension | Hacked Hvy. Reactive Plating | -5/Hub_04(d) | Hacked Adv. Hacking Suite | -5/Hub_04(d) | Hacked Hcp. Storage Unit | -5/Hub_04(d) | Hacked Adv. Cooling System | -5/Hub_04(d) | Hacked Adv. Hardlight Generator | -5/Hub_04(d) | Hacked Robot Schematics ------------------ M-13 Machinist | -9/Recycling | Hacked O-16 Technician | -9/Recycling | Hacked Fabricated ------------ Ovr. Railgun | x1 | -5/Factory Alien Tech Used ----------------- None Achievements -------------- None Challenges ------------ No Salvage Game ------ Seed StormStealthSaw Manual? 0 Play Time 02:29:58 Cumulative 473.6 hours Start 2024.09.11 @ 15:07:31 End 2024.09.12 @ 12:51:36 Sessions 9 Manual Loads 0 Difficulty Explorer Special Mode None Game No. 58 Rogue 6 Adventurer 6 Explorer 46 Win Type - Total 34 Types 13/6/2/5/1/1/1/3/2 Lore% 80 Gallery% 83 Achievement% 89 Wizard Run 0 Options --------- Layout 1 ASCII 0 Keyboard 0 Movement Mouse Keybinds 0 Fullscreen 1 Font 24/Smallcaps Map View 50x35 Zoom Use 0% Tactical HUD 1 Map Filters NONE Filters NONE Steam 1 RUN: 2dbef411-0208-4be5-87f8-f33e4b4ca570